bitfinex-derivatives/quotes_SOLF0:USTF0_20250411
["timestamp","ask_amount","ask_price","bid_price","bid_amount"]
[1744381319433,8.3694,119.54,119.53,0.05880708]
[1744381321131,45.96,119.56,119.53,0.05880708]
[1744381321534,8.3694,119.54,119.53,0.05880708]
[1744381322630,8.369,119.55,119.53,0.05880708]
[1744381322824,45.96,119.56,119.53,0.05880708]
[1744381323024,0.06118353,119.57,119.56,8.368]
[1744381323227,45.98,119.62,119.56,8.368]
[1744381323431,45.98,119.62,119.54,29.50621802]
[1744381323631,45.98,119.62,119.54,8.7613]
[1744381324128,45.98,119.62,119.56,8.3675]
[1744381324328,45.98,119.62,119.54,8.7613]
[1744381324530,0.05961877,119.6,119.58,0.06420716]
[1744381325028,8.3659,119.59,119.58,0.06420716]
[1744381326432,8.3684,119.56,119.5,24.90801802]
[1744381326624,45.96,119.58,119.51,4.1523]
[1744381327226,45.96,119.58,119.52,8.3705]
[1744381327426,45.96,119.58,119.51,4.1523]
[1744381327732,8.3687,119.55,119.54,0.0574358]
[1744381329232,0.05986903,119.56,119.54,0.0574358]
[1744381329233,8.42796903,119.56,119.54,0.0574358]
[1744381329434,0.05986903,119.56,119.54,0.0574358]
[1744381329932,8.3687,119.55,119.54,0.0574358]
[1744381330933,8.42826903,119.56,119.54,0.0574358]
[1744381331530,8.3687,119.55,119.54,0.0574358]
[1744381331931,20.80478705,119.56,119.46,12.937579]
[1744381332131,8.3705,119.53,119.48,8.3729]
[1744381332432,45.96,119.55,119.48,8.3729]
[1744381332629,8.3712,119.52,119.48,8.3729]
[1744381333033,0.05840969,119.51,119.49,0.05379569]
[1744381333329,46.01840969,119.51,119.49,0.05379569]
[1744381333727,8.3722,119.5,119.49,0.05379569]
[1744381333926,46.01840969,119.51,119.49,0.05379569]
[1744381334428,8.3722,119.5,119.49,0.05379569]
[1744381334829,46.01840969,119.51,119.49,0.05379569]
[1744381335535,20.74491802,119.5,119.44,11.48166435]
[1744381336731,0.05747993,119.48,119.46,0.05586308]
[1744381336933,8.3749,119.47,119.46,0.05586308]
[1744381337434,8.43107993,119.48,119.46,0.05586308]
[1744381337736,0.05747993,119.48,119.46,0.05586308]
[1744381338234,8.3743,119.47,119.46,0.05586308]
[1744381338935,54.36,119.47,119.4,11.48166435]
[1744381339134,20.74491802,119.43,119.4,11.48166435]
[1744381339334,20.74491802,119.45,119.4,11.48166435]
[1744381339535,20.74491802,119.44,119.4,11.48166435]
[1744381339736,45.98,119.43,119.4,11.48166435]
[1744381339938,5.56,119.46,119.4,11.48166435]
[1744381340133,0.06149295,119.43,119.4,11.48166435]
[1744381340447,0.06149295,119.43,119.41,8.3784]
[1744381340738,0.06149295,119.43,119.41,9.0034]
[1744381341431,20.74491802,119.5,119.41,9.0034]
[1744381341631,66.74491802,119.52,119.41,29.80623226]
[1744381341832,66.74491802,119.52,119.41,29.74831802]
[1744381342231,20.74491802,119.5,119.41,9.0034]
[1744381342639,0.06053744,119.47,119.44,0.0586441]
[1744381342842,46.0,119.46,119.44,0.0586441]
[1744381343044,66.74491802,119.46,119.44,0.0586441]
[1744381343537,8.3757,119.45,119.44,4.41e-05]
[1744381344535,8.3755,119.46,119.44,4.41e-05]
[1744381344737,0.06053744,119.47,119.44,4.41e-05]
[1744381344937,0.1159,119.56,119.45,20.74491802]
[1744381345130,8.3708,119.52,119.46,4.3955]
[1744381345335,46.0,119.52,119.46,4.3955]
[1744381345638,66.74491802,119.52,119.46,4.3955]
[1744381346041,0.06320594,119.5,119.48,0.05623234]
[1744381346340,8.3729,119.49,119.48,0.05623234]
[1744381347837,20.80812396,119.5,119.43,66.5014]
[1744381348036,45.92,119.49,119.43,4.5014]
[1744381348237,45.92,119.49,119.41,4.1623]
[1744381348438,20.74491802,119.48,119.41,4.1623]
[1744381348639,20.74491802,119.46,119.38,4.2374]
[1744381348834,45.92,119.45,119.38,4.2374]
[1744381349039,0.06372224,119.43,119.38,4.2374]
[1744381349243,0.06372224,119.43,119.4,0.0230574]
[1744381349739,45.92,119.48,119.4,20.76797542]
[1744381349943,20.74491802,119.48,119.38,24.98231802]
[1744381350247,66.66491802,119.5,119.39,50.3554]
[1744381350541,8.3743,119.47,119.41,8.3784]
[1744381350738,66.66491802,119.5,119.4,20.74491802]
[1744381350934,0.05374005,119.45,119.43,0.05374397]
[1744381351137,8.3741,119.48,119.43,45.97374397]
[1744381351338,8.3741,119.48,119.44,4.3996]
[1744381352347,0.06327798,119.47,119.45,0.05321371]
[1744381352537,648.66,119.53,119.44,12.7759]
[1744381352840,0.0560239,119.47,119.45,0.05587855]
[1744381353042,0.05665112,119.5,119.44,25.14451802]
[1744381353240,20.74491802,119.55,119.46,20.74491802]
[1744381353440,72.44931802,119.57,119.47,45.92]
[1744381354145,20.74491802,119.53,119.44,4.3996]
[1744381354345,66.66491802,119.53,119.44,4.3996]
[1744381354646,0.05896327,119.5,119.47,0.06289591]
[1744381354833,8.3736,119.48,119.47,0.06289591]
[1744381356447,0.05896327,119.5,119.47,0.06289591]
[1744381356949,8.3733,119.49,119.47,0.06289591]
[1744381357349,0.05896327,119.5,119.47,0.06289591]
[1744381358345,80.02042977,119.56,119.47,0.06289591]
[1744381358346,80.02042977,119.56,119.48,8.3735]
[1744381358650,8.3709,119.52,119.48,4.3089]
[1744381359050,8.3705,119.53,119.48,4.3089]
[1744381359549,0.05755735,119.52,119.49,0.05714674]
[1744381361251,8.3722,119.5,119.49,0.05714674]
[1744381361745,0.05755735,119.52,119.49,0.05714674]
[1744381361950,34.15798712,119.52,119.49,0.05714674]
[1744381362148,34.10042977,119.5,119.38,602.8]
[1744381362359,34.10042977,119.48,119.39,8.6298]
[1744381362546,34.10042977,119.46,119.39,8.6298]
[1744381363246,0.06192365,119.44,119.41,0.0597589]
[1744381364252,0.06192365,119.44,119.41,8.4381589]
[1744381364451,0.06192365,119.44,119.41,0.0597589]
[1744381365450,8.3778,119.42,119.41,0.0597589]
[1744381367950,8.3774,119.43,119.41,0.0597589]
[1744381368151,0.06192365,119.44,119.41,0.0597589]
[1744381368555,8.3778,119.42,119.41,0.0597589]
[1744381368957,34.10042977,119.42,119.36,4.4789]
[1744381369157,8.3813,119.37,119.36,4.4789]
[1744381369358,45.94,119.41,119.36,4.4789]
[1744381369853,45.94,119.41,119.34,4.2536]
[1744381369854,34.10042977,119.4,119.34,4.2536]
[1744381370053,45.94,119.41,119.34,4.2536]
[1744381370255,0.0601625,119.38,119.36,0.06404171]
[1744381370459,45.94,119.37,119.31,1.45774427]
[1744381370659,45.94,119.37,119.3,11.48166435]
[1744381371453,45.94,119.37,119.31,8.3851]
[1744381371660,0.05622633,119.35,119.32,0.0574821]
[1744381372460,8.3841,119.33,119.32,0.0574821]
[1744381372665,0.05622633,119.35,119.32,0.0574821]
[1744381373670,8.3841,119.33,119.32,0.0574821]
[1744381373868,0.05622633,119.35,119.32,0.0574821]
[1744381374572,80.1166561,119.35,119.32,0.0574821]
[1744381374768,8.3841,119.33,119.32,0.0574821]
[1744381376568,34.10042977,119.34,119.25,1.45850796]
[1744381376762,649.22,119.35,119.26,42.65182977]
[1744381376965,54.3432,119.35,119.26,44.11033773]
[1744381377168,45.96,119.38,119.28,34.10042977]
[1744381377371,45.96,119.38,119.28,394.10042977]
[1744381377571,80.06042977,119.38,119.3,8.3857]
[1744381377875,0.06141074,119.34,119.32,0.02336351]
[1744381379172,8.3841,119.33,119.32,0.02336351]
[1744381379382,0.06141074,119.34,119.32,0.02336351]
[1744381379878,8.3841,119.33,119.32,0.02336351]
[1744381380478,0.06141074,119.34,119.32,0.02336351]
[1744381380779,45.96141074,119.34,119.32,0.02336351]
[1744381380979,67.00434577,119.34,119.26,8.5514]
[1744381381179,21.04293503,119.32,119.26,8.5514]
[1744381382275,0.06291977,119.3,119.26,8.5514]
[1744381382482,0.06291977,119.3,119.28,8.3872]
[1744381382981,0.06291977,119.3,119.27,8.3882]
[1744381383177,0.06291977,119.3,119.26,8.5514]
[1744381383481,0.06291977,119.3,119.27,8.3879]
[1744381383685,0.06291977,119.3,119.27,21.04293503]
[1744381383983,0.06291977,119.3,119.26,8.5514]
[1744381384977,0.06291977,119.3,119.23,1.4586608]
[1744381385281,0.06291977,119.3,119.25,8.3896]
[1744381385675,0.06291977,119.3,119.24,21.1364]
[1744381385874,0.06291977,119.3,119.24,4.1709]
[1744381386079,8.3887,119.27,119.24,4.1709]
[1744381386281,45.92,119.3,119.24,4.1709]
[1744381386578,0.05576766,119.27,119.24,4.1709]
[1744381386780,8.3893,119.26,119.24,4.1709]
[1744381387279,8.389,119.26,119.24,4.1709]
[1744381387783,0.05576766,119.27,119.24,4.1709]
[1744381389480,8.44446766,119.27,119.24,4.1709]
[1744381389985,0.05576766,119.27,119.24,4.1709]
[1744381390878,8.389,119.26,119.24,4.1709]
[1744381391081,0.05576766,119.27,119.23,4.3768]
[1744381391384,0.05576766,119.27,119.2,8.5403]
[1744381391580,0.05576766,119.27,119.21,4.5235]
[1744381391775,8.44406766,119.27,119.21,25.56643503]
[1744381392083,0.05576766,119.27,119.22,8.3912]
[1744381392384,8.3895,119.26,119.22,8.3912]
[1744381393983,8.44426766,119.27,119.23,8.3911]
[1744381394180,0.05576766,119.27,119.21,25.56643503]
[1744381395386,0.05576766,119.27,119.23,21.04293503]
[1744381395585,8.44446766,119.27,119.23,8.3907]
[1744381395985,0.05576766,119.27,119.21,4.5235]
[1744381396690,8.3892,119.26,119.22,8.3912]
[1744381396891,0.05576766,119.27,119.21,25.56643503]
[1744381397083,8.3894,119.26,119.22,8.3918]
[1744381397891,21.09870269,119.27,119.2,5.80101127]
[1744381398095,45.94,119.26,119.2,5.80101127]
[1744381398291,0.05342322,119.25,119.2,4.3418]
[1744381398803,8.44372322,119.25,119.2,12.7347]
[1744381398989,0.05342322,119.25,119.2,4.3418]
[1744381399189,0.05342322,119.25,119.22,8.3915]
[1744381399390,0.05342322,119.25,119.21,4.5635]
[1744381399890,0.05342322,119.25,119.2,4.3418]
[1744381400284,0.05342322,119.25,119.21,21.04293503]
[1744381400489,649.44,119.32,119.23,21.04293503]
[1744381400692,670.48293503,119.32,119.24,4.3067]
[1744381400887,21.04293503,119.3,119.24,4.3067]
[1744381401087,649.44,119.32,119.2,4.3418]
[1744381401088,21.04293503,119.28,119.2,4.3418]
[1744381401294,21.04293503,119.24,119.19,4.3067]
[1744381401491,45.94,119.23,119.12,381.04293503]
[1744381401789,0.06084262,119.19,119.13,10.28081526]
[1744381401997,8.45534262,119.19,119.16,0.05342322]
[1744381402295,0.06084262,119.19,119.16,0.05342322]
[1744381402496,8.3954,119.17,119.16,0.05342322]
[1744381404095,8.395,119.18,119.16,0.05342322]
[1744381404398,46.00084262,119.19,119.16,0.05342322]
[1744381404699,0.06084262,119.19,119.16,0.05342322]
[1744381405001,45.96,119.22,119.16,0.05342322]
[1744381405495,8.3929,119.21,119.16,4.20152322]
[1744381405897,8.3929,119.21,119.17,8.395]
[1744381406099,0.05554036,119.2,119.17,8.395]
[1744381406695,0.05554036,119.2,119.18,8.3944]
[1744381406897,0.05554036,119.2,119.16,25.24445825]
[1744381407289,8.3908,119.24,119.2,8.3932]
[1744381407494,45.96,119.25,119.18,21.04293503]
[1744381407793,67.00293503,119.28,119.21,8.3923]
[1744381407999,21.04293503,119.26,119.19,4.5158]
[1744381408200,21.04293503,119.26,119.16,8.4982]
[1744381408395,21.10606127,119.24,119.21,0.05539392]
[1744381408704,21.10606127,119.24,119.13,1.45994588]
[1744381408705,21.04293503,119.22,119.13,1.45994588]
[1744381409004,8.395,119.18,119.14,8.3974]
[1744381409392,8.3944,119.19,119.15,8.3967]
[1744381409592,0.05640806,119.18,119.16,0.06402368]
[1744381409796,649.94,119.23,119.16,0.06402368]
[1744381410104,649.94,119.23,119.16,8.45952368]
[1744381410397,0.05485398,119.21,119.16,8.45952368]
[1744381410603,8.44775398,119.21,119.17,8.3952]
[1744381410806,8.44775398,119.21,119.16,0.06402368]
[1744381411099,8.44775398,119.21,119.17,8.3953]
[1744381411300,8.44775398,119.21,119.16,0.06402368]
[1744381411497,0.05485398,119.21,119.16,0.06402368]
[1744381412101,8.44745398,119.21,119.16,0.06402368]
[1744381412298,0.05485398,119.21,119.16,0.06402368]
[1744381412505,21.09778901,119.21,119.16,0.06402368]
[1744381413497,0.05485398,119.21,119.16,0.06402368]
[1744381413902,21.09778901,119.21,119.16,0.06402368]
[1744381414113,0.05485398,119.21,119.16,0.06402368]
[1744381414808,8.44795398,119.21,119.17,8.395]
[1744381415007,0.05485398,119.21,119.16,45.98402368]
[1744381415208,0.05485398,119.21,119.16,0.06402368]
[1744381415701,8.3937,119.2,119.16,0.06402368]
[1744381415902,0.05485398,119.21,119.16,0.06402368]
[1744381416304,8.3947,119.18,119.16,0.06402368]
[1744381416704,8.45611492,119.18,119.16,0.06402368]
[1744381416908,8.3954,119.17,119.16,0.06402368]
[1744381417510,54.39641492,119.18,119.16,0.06402368]
[1744381417807,46.00141492,119.18,119.16,0.06402368]
[1744381418019,8.3954,119.17,119.16,0.06402368]
[1744381418223,46.00141492,119.18,119.16,0.06402368]
[1744381418701,0.06141492,119.18,119.16,0.06402368]
[1744381418907,0.06141492,119.18,119.16,8.45972368]
[1744381419911,0.06141492,119.18,119.16,0.06402368]
[1744381422616,0.06141492,119.18,119.17,8.3954]
[1744381422813,0.06141492,119.18,119.16,0.06402368]
[1744381423212,8.3954,119.17,119.16,0.06402368]
[1744381423618,8.45641492,119.18,119.16,0.06402368]
[1744381423915,0.06141492,119.18,119.16,0.06402368]
[1744381424121,8.3954,119.17,119.16,0.06402368]
[1744381424317,0.06141492,119.18,119.16,0.06402368]
[1744381424806,0.06141492,119.18,119.16,8.45962368]
[1744381425010,0.06141492,119.18,119.16,0.06402368]
[1744381425212,8.3954,119.17,119.16,0.06402368]
[1744381425511,0.06141492,119.18,119.16,0.06402368]
[1744381425705,8.3954,119.17,119.16,0.06402368]
[1744381426118,0.06141492,119.18,119.16,0.06402368]
[1744381427019,8.45631492,119.18,119.16,0.06402368]
[1744381427220,0.06141492,119.18,119.16,0.06402368]
[1744381427618,8.3954,119.17,119.16,0.06402368]
[1744381428119,54.3354,119.17,119.16,0.06402368]
[1744381430721,75.38293503,119.17,119.09,8.5509]
[1744381431016,21.04293503,119.13,119.01,45.94]
[1744381431223,45.94,119.12,119.02,25.20813503]
[1744381431516,3.5834,119.14,119.04,21.04293503]
[1744381431720,21.04293503,119.15,119.04,21.04293503]
[1744381431919,0.06099518,119.1,119.08,0.0503886]
[1744381432120,0.06099518,119.1,119.0,54.7804]
[1744381432121,21.04293503,119.1,119.03,1.46129459]
[1744381432322,45.94,119.11,119.01,21.04293503]
[1744381432625,8.4028,119.07,119.02,4.3411]
[1744381432923,45.94,119.11,119.04,11.60586578]
[1744381433123,45.94,119.11,119.05,4.5688]
[1744381433324,0.06166621,119.09,119.05,25.61173503]
[1744381433624,0.05502807,119.08,119.06,8.4028]
[1744381433825,45.96,119.14,119.06,8.4028]
[1744381434025,45.96,119.14,119.06,70.4028]
[1744381434326,8.4004,119.1,119.05,4.5688]
[1744381434516,45.96,119.14,119.05,25.61173503]
[1744381434719,8.3997,119.11,119.06,8.403]
[1744381434925,0.06427123,119.11,119.08,0.0534284]
[1744381435228,21.04293503,119.09,119.04,11.60586578]
[1744381435420,45.96,119.1,119.04,11.60586578]
[1744381435722,8.4036,119.06,119.04,11.60586578]
[1744381436032,45.96,119.13,119.04,11.60586578]
[1744381436324,45.96,119.13,118.96,34.81759735]
[1744381436325,21.04293503,119.06,118.96,46.42346313]
[1744381436529,21.04293503,119.0,118.98,1.46160146]
[1744381436731,54.3681,118.99,118.98,1.46160146]
[1744381437030,54.3681,118.99,118.94,139.2703894]
[1744381437031,0.05524549,119.0,118.94,139.2703894]
[1744381437234,8.4091,118.98,118.94,139.2703894]
[1744381437523,45.96,119.03,118.94,139.2703894]
[1744381437827,0.06338932,118.97,118.95,25.43523503]
[1744381438026,23.54213503,119.05,118.95,25.43523503]
[1744381438324,45.96,119.07,118.97,21.04293503]
[1744381438529,21.04293503,119.09,118.98,4.2291]
[1744381438821,8.404,119.05,118.99,8.4078]
[1744381439028,625.72293503,119.1,119.0,4.222]
[1744381439222,21.04293503,119.12,119.01,68.40293503]
[1744381439529,81.68767351,119.15,119.04,34.32767351]
[1744381439731,81.68767351,119.15,119.05,55.8111]
[1744381440131,639.00767351,119.16,119.06,38.72217351]
[1744381440424,34.81759735,119.1,119.09,0.05328811]
[1744381440623,171.82835652,119.12,119.09,47.36]
[1744381440829,237.1055446,119.13,119.11,34.32767351]
[1744381441029,22.05970151,119.14,119.12,606.51897918]
[1744381441225,42.77667351,119.27,119.13,81.68767351]
[1744381441419,4.4918,119.26,119.15,34.32767351]
[1744381441621,34.32767351,119.25,119.16,8.3961]
[1744381441821,0.40243969,119.17,119.15,0.06214834]
[1744381442024,0.40243969,119.17,119.15,51.18652185]
[1744381442221,0.40243969,119.17,119.15,42.78982185]
[1744381442626,0.29954296,119.17,119.16,8.3961]
[1744381442825,0.29954296,119.17,119.15,0.06214834]
[1744381443630,0.29954296,119.17,119.15,34.38982185]
[1744381443825,0.29954296,119.17,119.16,62.0]
[1744381445039,0.29954296,119.17,119.16,71.45292301]
[1744381446235,8.69494296,119.17,119.16,9.45292301]
[1744381446435,43.02261647,119.17,119.16,9.45292301]
[1744381446836,8.3961,119.16,119.15,0.06214834]
[1744381447039,0.29954296,119.17,119.15,0.06214834]
[1744381449542,8.3961,119.16,119.15,0.06214834]
[1744381449745,34.62721647,119.17,119.11,9.22804526]
[1744381450248,0.29954296,119.17,119.11,9.22804526]
[1744381450745,8.3962,119.16,119.11,9.22804526]
[1744381450937,0.29954296,119.17,119.13,0.05380938]
[1744381451138,0.05888969,119.17,119.13,0.05380938]
[1744381451538,34.3865632,119.17,119.13,0.05380938]
[1744381451938,0.05888969,119.17,119.13,0.05380938]
[1744381452639,0.05888969,119.17,119.14,62.0]
[1744381452841,0.05888969,119.17,119.16,8.3961]
[1744381453036,0.05888969,119.17,119.13,360.05380938]
[1744381453242,0.05888969,119.17,119.13,0.05380938]
[1744381453942,0.05888969,119.17,119.13,1.73264762]
[1744381454243,83.3065632,119.17,119.13,0.05380938]
[1744381454450,42.72447351,119.15,119.14,46.1402263]
[1744381454747,34.32767351,119.15,119.12,139.2703894]
[1744381454941,8.3989,119.12,119.11,288.83485379]
[1744381455142,8.3989,119.12,119.11,46.17149603]
[1744381455446,12.9393,119.12,119.1,195.27355974]
[1744381455742,34.32767351,119.11,119.09,232.1173157]
[1744381455947,34.32767351,119.11,119.09,218.6828157]
[1744381456143,8.4003,119.1,119.09,218.6828157]
[1744381456840,34.32767351,119.11,119.09,218.6828157]
[1744381457041,4.59663171,119.12,119.09,218.6828157]
[1744381457249,38.92430522,119.12,119.09,218.6828157]
[1744381457949,8.4004,119.1,119.08,0.0597581]
[1744381458147,38.92430522,119.12,119.08,0.0597581]
[1744381458745,34.32767351,119.1,119.08,0.0597581]
[1744381458942,48.94,119.09,119.08,0.0597581]
[1744381459242,57.341,119.09,119.08,0.0597581]
[1744381460248,8.4006,119.1,119.08,0.0597581]
[1744381460650,692.44430522,119.12,119.08,0.0597581]
[1744381461644,8.401,119.09,119.08,5.81e-05]
[1744381462048,12.6219,119.09,119.08,5.81e-05]
[1744381462451,8.4064,119.02,118.99,9.86725495]
[1744381462751,83.26767351,119.06,118.97,4.2277]
[1744381463151,8.4046,119.04,118.97,4.2277]
[1744381463352,83.26767351,119.06,118.97,66.2277]
[1744381463552,8.4065,119.02,118.97,4.2277]
[1744381463755,0.05900727,119.03,118.97,4.2277]
[1744381463945,0.05900727,119.03,118.95,1.46236921]
[1744381464250,34.38317867,119.0,118.92,8.6244]
[1744381464454,34.32767351,118.98,118.92,8.6244]
[1744381464751,0.05468115,118.97,118.92,57.5644]
[1744381465147,0.05468115,118.97,118.92,8.6244]
[1744381465351,0.05468115,118.97,118.92,4.2277]
[1744381465649,0.05468115,118.97,118.9,1.46289173]
[1744381465851,0.05468115,118.97,118.87,9.1084]
[1744381466046,83.26767351,118.97,118.87,9.1084]
[1744381466259,0.05823229,118.93,118.87,10.7909103]
[1744381466545,0.05823229,118.93,118.88,1.68236877]
[1744381466849,8.8571,119.01,118.92,8.4127]
[1744381466850,48.96,119.01,118.92,8.4127]
[1744381467053,83.28767351,119.01,118.9,34.32767351]
[1744381467246,34.32767351,118.99,118.88,410.64236877]
[1744381467447,34.32767351,118.99,118.88,444.97004228]
[1744381467750,34.32767351,118.95,118.88,1.68236877]
[1744381467950,84.86767351,118.95,118.88,1.68236877]
[1744381468148,34.38640266,118.93,118.9,0.06125242]
[1744381468854,0.05872915,118.93,118.9,0.06125242]
[1744381469259,8.4137,118.91,118.9,0.06125242]
[1744381469657,8.4137,118.91,118.9,5.242e-05]
[1744381469860,58.9737,118.91,118.9,5.242e-05]
[1744381470157,8.4187,118.84,118.83,1.68307666]
[1744381470552,34.32767351,118.89,118.83,1.68307666]
[1744381470752,4.1414,118.9,118.83,1.68307666]
[1744381470753,34.32767351,118.87,118.83,1.68307666]
[1744381470960,34.32767351,118.89,118.78,34.32767351]
[1744381471257,0.05666445,118.85,118.8,34.32767351]
[1744381471463,50.56,118.92,118.82,34.32767351]
[1744381471655,58.9736,118.92,118.86,8.417]
[1744381472062,50.56,118.92,118.83,63.8243]
[1744381472263,8.4147,118.9,118.84,8.4183]
[1744381472552,0.06242643,118.88,118.86,0.05666446]
[1744381472752,8.4167,118.87,118.81,8.4204]
[1744381472958,50.63394291,118.88,118.86,0.05628627]
[1744381473164,50.58,118.88,118.78,410.58]
[1744381473455,50.58,118.88,118.82,8.4197]
[1744381473657,0.06341848,118.84,118.82,0.05666446]
[1744381473846,0.06341848,118.84,118.83,8.4194]
[1744381474048,50.58,118.91,118.82,93.38433797]
[1744381474251,50.58,118.91,118.83,4.3944]
[1744381474651,84.90767351,118.94,118.84,38.52497351]
[1744381474856,8.4472,118.95,118.86,34.32767351]
[1744381475052,8.4472,118.95,118.89,0.05498046]
[1744381475257,0.05331941,118.92,118.89,0.05498046]
[1744381476461,0.05331941,118.92,118.89,8.46968046]
[1744381476663,0.05331941,118.92,118.89,0.05498046]
[1744381476854,0.05331941,118.92,118.89,364.53528046]
[1744381477056,4.5084,118.99,118.9,38.52497351]
[1744381477363,4.4185,119.0,118.91,62.0]
[1744381477662,4.4185,119.0,118.92,38.67357351]
[1744381477863,52.22,119.01,118.92,38.67357351]
[1744381478156,52.22,119.01,118.97,8.4093]
[1744381478157,0.06295969,118.98,118.97,8.4093]
[1744381478554,86.54767351,119.05,118.98,8.4083]
[1744381478555,8.4048,119.04,118.98,8.4083]
[1744381478755,52.22,119.05,118.96,34.32767351]
[1744381478954,644.33347351,119.07,118.97,4.4878]
[1744381479160,8.4035,119.06,119.0,8.407]
[1744381479364,644.33347351,119.07,118.97,4.4878]
[1744381479564,610.0058,119.07,118.97,364.4878]
[1744381479764,0.05720567,119.03,119.01,0.06448624]
[1744381484662,8.46290567,119.03,119.01,0.06448624]
[1744381484858,0.05720567,119.03,119.01,0.06448624]
[1744381485767,8.46270567,119.03,119.01,0.06448624]
[1744381485967,0.05720567,119.03,119.01,0.06448624]
[1744381486466,8.4059,119.02,119.01,0.06448624]
[1744381486676,34.32767351,119.02,118.91,4.4727]
[1744381486879,34.32767351,118.99,118.92,1.68180289]
[1744381487287,8.4093,118.98,118.93,8.4122]
[1744381487582,4.3283,119.0,118.93,62.0]
[1744381487885,8.47065136,118.97,118.94,0.06060508]
[1744381488381,8.4102,118.96,118.94,0.06060508]
[1744381488580,0.06085136,118.97,118.94,0.06060508]
[1744381489980,0.06085136,118.97,118.94,4.36790508]
[1744381490181,0.06085136,118.97,118.95,8.4105]
[1744381490383,0.06085136,118.97,118.94,4.36790508]
[1744381490579,4.2101,119.04,118.98,8.4087]
[1744381490888,4.2101,119.04,118.98,70.4087]
[1744381491184,12.615,119.04,118.99,8.4077]
[1744381491379,12.615,119.04,118.98,62.0]
[1744381491380,4.2341,119.05,118.98,62.0]
[1744381491580,0.05473484,119.03,119.0,0.06439293]
[1744381493887,93.80534702,119.01,118.86,138.5111152]
[1744381494186,4.2586,119.0,118.89,34.32767351]
[1744381494385,8.4101,118.97,118.89,90.76777351]
[1744381494587,4.2586,119.0,118.89,90.76777351]
[1744381495087,0.06291434,118.96,118.93,0.06092813]
[1744381495887,8.4112,118.95,118.93,0.06092813]
[1744381496084,8.4112,118.95,118.94,1.68152009]
[1744381496286,0.06291434,118.96,118.94,1.68152009]
[1744381497390,0.06291434,118.96,118.93,0.06092813]
[1744381498591,691.72767351,119.02,118.93,52.26092813]
[1744381498790,34.32767351,119.0,118.93,52.2]
[1744381499786,0.06002023,118.98,118.95,0.06468019]
[1744381500291,34.38769374,118.98,118.95,0.06468019]
[1744381500792,0.06002023,118.98,118.95,0.06468019]
[1744381501195,8.4102,118.96,118.95,0.06468019]
[1744381501585,0.06002023,118.98,118.95,0.06468019]
[1744381501792,8.4096,118.97,118.95,0.06468019]
[1744381501993,0.06002023,118.98,118.95,0.06468019]
[1744381502492,34.32767351,118.97,118.95,0.06468019]
[1744381502789,0.06002023,118.98,118.95,0.06468019]
[1744381502997,34.32767351,118.97,118.95,0.06468019]
[1744381503593,0.06002023,118.98,118.95,0.06468019]
[1744381504589,0.06002023,118.98,118.96,8.4096]
[1744381504796,0.06002023,118.98,118.95,0.06468019]
[1744381504990,0.06002023,118.98,118.96,8.4101]
[1744381505189,34.32767351,119.07,118.96,34.32767351]
[1744381505386,4.2415,119.05,118.97,55.0672]
[1744381505597,8.4038,119.06,118.98,34.32767351]
[1744381505794,38.87327351,119.09,118.98,394.32767351]
[1744381505998,8.4027,119.07,118.98,394.32767351]
[1744381506300,38.87327351,119.09,118.98,394.32767351]
[1744381506494,0.05320235,119.04,119.01,0.05754647]
[1744381506691,0.05320235,119.04,118.98,394.32767351]
[1744381506889,0.05320235,119.04,119.01,0.05823589]
[1744381507795,0.05320235,119.04,119.01,50.67823589]
[1744381508003,8.4028,119.07,119.01,50.67823589]
[1744381508212,42.96767351,119.11,119.01,50.67823589]
[1744381508399,8.4013,119.09,119.02,70.4057]
[1744381508605,8.64,119.11,119.02,96.32767351]
[1744381508804,8.64,119.11,119.03,4.4302]
[1744381509012,0.05890746,119.08,119.06,0.05875419]
[1744381509712,8.4024,119.07,119.06,0.05875419]
[1744381510009,0.05890746,119.08,119.06,0.05875419]
[1744381510214,8.4024,119.07,119.06,0.05875419]
[1744381511509,0.05890746,119.08,118.99,613.708]
[1744381511708,34.32767351,119.05,118.97,11.55322031]
[1744381511906,34.32767351,119.03,118.97,11.55322031]
[1744381512112,8.4072,119.01,118.97,11.55322031]
[1744381512714,0.05955935,119.0,118.98,0.06163747]
[1744381513813,0.05955935,119.0,118.99,8.4081]
[1744381514618,54.8636,119.06,119.0,8.4073]
[1744381515309,8.4039,119.05,118.97,34.32767351]